bitfinex/quotes_SOLUSD_20220218
["timestamp","ask_amount","ask_price","bid_price","bid_amount"]
[1645183834746,43.25736085,94.83,94.75,15.8312]
[1645183834946,48.53136085,94.83,94.75,15.8312]
[1645183835145,7.9033831,94.83,94.75,15.8312]
[1645183835346,23.7347831,94.83,94.75,15.8312]
[1645183835547,5.274,94.83,94.75,15.8312]
[1645183835746,5.274,94.83,94.742,49.70989909]
[1645183835950,2.6293831,94.829,94.742,49.70989909]
[1645183836146,5.275,94.828,94.742,49.70989909]
[1645183836546,0.69083573,94.806,94.742,49.70989909]
[1645183837049,5.275,94.805,94.742,49.70989909]
[1645183838348,15.8363,94.8,94.742,49.70989909]
[1645183840649,5.275,94.805,94.742,49.70989909]
[1645183841649,5.275,94.813,94.742,49.70989909]
[1645183842050,5.275,94.825,94.742,49.70989909]
[1645183842450,15.8348,94.81,94.742,49.70989909]
[1645183842852,5.275,94.825,94.742,155.20989909]
[1645183843060,5.275,94.825,94.742,49.70989909]
[1645183843351,5.275,94.825,94.743,2.6293831]
[1645183843754,5.275,94.825,94.742,49.70989909]
[1645183843950,49.79474655,94.824,94.742,49.70989909]
[1645183844152,5.275,94.823,94.742,49.70989909]
[1645183844350,15.8329,94.82,94.742,49.70989909]
[1645183845154,15.8329,94.82,94.742,155.20989909]
[1645183845550,15.8329,94.82,94.742,49.70989909]
[1645183847755,5.275,94.819,94.742,49.70989909]
[1645183849160,39.40982406,94.818,94.742,49.70989909]
[1645183849362,15.8345,94.81,94.742,49.70989909]
[1645183850460,15.8345,94.81,94.742,155.20989909]
[1645183850860,15.8345,94.81,94.742,49.70989909]
[1645183852863,15.8326,94.82,94.742,49.70989909]
[1645183855066,15.8326,94.82,94.751,105.5]
[1645183855476,15.8326,94.82,94.75,15.8318]
[1645183856669,15.8326,94.82,94.751,105.5]
[1645183857070,15.8326,94.82,94.75,15.8318]
[1645183858072,5.991534,94.819,94.75,15.8318]
[1645183858272,15.8326,94.82,94.75,15.8318]
[1645183858675,5.99156663,94.819,94.75,15.8318]
[1645183860098,58.10394797,94.819,94.75,15.8318]
[1645183860494,2.95455449,94.812,94.75,15.8318]
[1645183860894,2.95455449,94.811,94.75,15.8318]
[1645183861893,2.95455449,94.807,94.75,15.8318]
[1645183862694,2.95455449,94.806,94.75,15.8318]
[1645183863093,2.95455449,94.807,94.75,15.8318]
[1645183863294,2.95455449,94.807,94.742,49.70989909]
[1645183863494,2.95455449,94.806,94.742,49.70989909]
[1645183866398,2.95455449,94.805,94.742,49.70989909]
[1645183866999,2.95455449,94.804,94.742,49.70989909]
[1645183867405,2.95455449,94.805,94.742,49.70989909]
[1645183867599,2.95455449,94.804,94.742,49.70989909]
[1645183868001,2.95455449,94.805,94.742,49.70989909]
[1645183868900,2.95455449,94.804,94.742,49.70989909]
[1645183869102,2.95455449,94.802,94.742,49.70989909]
[1645183869403,2.95455449,94.8,94.742,49.70989909]
[1645183869600,2.95455449,94.801,94.742,49.70989909]
[1645183869801,2.95455449,94.8,94.742,49.70989909]
[1645183870505,2.95455449,94.8,94.742,155.20989909]
[1645183870703,2.95455449,94.8,94.743,2.6293831]
[1645183870903,2.95455449,94.802,94.743,2.6293831]
[1645183871103,2.95455449,94.802,94.742,155.20989909]
[1645183871502,2.95455449,94.803,94.742,155.20989909]
[1645183871905,2.95455449,94.804,94.75,15.8317]
[1645183872303,2.95455449,94.806,94.75,15.8317]
[1645183872509,5.99156663,94.803,94.751,2.6293831]
[1645183872705,5.99156663,94.808,94.751,2.6293831]
[1645183872909,5.99156663,94.808,94.75,15.8317]
[1645183873106,2.95455449,94.806,94.75,15.8317]
[1645183873305,5.99156663,94.808,94.751,2.6293831]
[1645183873605,2.95455449,94.807,94.75,15.8317]
[1645183874204,2.95455449,94.806,94.75,15.8317]
[1645183874406,2.95455449,94.806,94.751,105.5]
[1645183874604,5.99156663,94.808,94.751,105.5]
[1645183874605,2.95455449,94.807,94.751,105.5]
[1645183875206,5.99156663,94.806,94.75,15.8317]
[1645183875416,2.95455449,94.807,94.75,15.8317]
[1645183875609,5.99156663,94.808,94.75,15.8317]
[1645183876410,5.99156663,94.808,94.745,16.1395]
[1645183876608,5.99156663,94.808,94.743,23.9765]
[1645183876807,2.95455449,94.804,94.743,23.9765]
[1645183877012,2.95455449,94.802,94.743,23.9765]
[1645183877707,2.95455449,94.801,94.743,23.9765]
[1645183877909,2.95455449,94.801,94.742,49.70989909]
[1645183878209,2.95455449,94.797,94.742,49.70989909]
[1645183878609,2.95455449,94.802,94.742,49.70989909]
[1645183879111,2.95455449,94.799,94.742,49.70989909]
[1645183879311,2.95455449,94.798,94.742,49.70989909]
[1645183879513,2.95455449,94.797,94.742,49.70989909]
[1645183880312,2.95455449,94.8,94.742,49.70989909]
[1645183880610,8.94612112,94.799,94.742,49.70989909]
[1645183880811,2.95455449,94.799,94.742,49.70989909]
[1645183881011,2.95455449,94.797,94.742,49.70989909]
[1645183881813,2.95455449,94.8,94.742,49.70989909]
[1645183882013,5.99156663,94.796,94.742,49.70989909]
[1645183882219,2.95455449,94.8,94.742,49.70989909]
[1645183882912,2.95455449,94.798,94.742,49.70989909]
[1645183884621,2.95455449,94.797,94.742,49.70989909]
[1645183885116,8.35455449,94.797,94.69,52.7905]
[1645183885316,2.95455449,94.785,94.686,24.8216]
[1645183885516,5.277,94.784,94.686,24.8216]
[1645183885715,2.95455449,94.78,94.686,24.8216]
[1645183886115,5.277,94.794,94.687,152.38712899]
[1645183886116,2.95455449,94.778,94.687,152.38712899]
[1645183886319,5.99156663,94.778,94.687,176.55372899]
[1645183886520,2.95455449,94.776,94.687,176.55372899]
[1645183886720,5.277,94.775,94.688,2.6293831]
[1645183886922,5.277,94.777,94.688,2.6293831]
[1645183887123,5.99156663,94.774,94.688,2.6293831]
[1645183887319,5.99156663,94.776,94.691,105.5]
[1645183887520,5.277,94.775,94.691,105.5]
[1645183887719,5.99156663,94.774,94.691,105.5]
[1645183888119,5.277,94.773,94.691,105.5]
[1645183888519,5.277,94.778,94.691,105.5]
[1645183888719,45.17093825,94.777,94.7,15.8399]
[1645183888922,5.277,94.776,94.7,15.8399]
[1645183889119,5.99410627,94.776,94.7,15.8399]
[1645183889319,5.277,94.775,94.7,15.8399]
[1645183889519,5.99410627,94.774,94.7,15.8399]
[1645183889921,5.277,94.773,94.701,105.5]
[1645183890122,11.27110627,94.776,94.702,144.70400602]
[1645183890322,5.277,94.772,94.702,144.70400602]
[1645183890523,15.8409,94.77,94.702,144.70400602]
[1645183892927,5.277,94.769,94.702,144.70400602]
[1645183893149,23.1021,94.768,94.702,144.70400602]
[1645183894754,23.1021,94.768,94.702,39.20400602]
[1645183899457,23.1021,94.768,94.703,2.6293831]
[1645183899858,23.1021,94.768,94.702,39.20400602]
[1645183900758,23.1021,94.768,94.703,2.6293831]
[1645183900957,23.1021,94.768,94.702,39.20400602]
[1645183901158,23.1021,94.768,94.702,144.70400602]
[1645183901758,23.1021,94.768,94.702,39.20400602]
[1645183904164,23.1021,94.768,94.702,144.70400602]
[1645183904363,23.1021,94.768,94.702,147.33338912]
[1645183904566,23.1021,94.768,94.702,41.83338912]
[1645183904766,23.1021,94.768,94.702,39.20400602]
[1645183905568,23.1021,94.768,94.703,2.6293831]
[1645183905768,23.1021,94.768,94.702,144.70400602]
[1645183907368,23.1021,94.768,94.702,39.20400602]
[1645183907974,45.58509984,94.766,94.702,39.20400602]
[1645183908184,11.2717398,94.765,94.702,39.20400602]
[1645183908371,5.9947398,94.764,94.702,39.20400602]
[1645183908571,5.277,94.763,94.702,39.20400602]
[1645183908772,5.9947398,94.762,94.702,39.20400602]
[1645183908976,5.277,94.761,94.702,39.20400602]
[1645183909171,5.9947398,94.76,94.702,39.20400602]
[1645183909474,5.277,94.759,94.702,39.20400602]
[1645183909672,5.9947398,94.758,94.702,39.20400602]
[1645183910073,8.6241229,94.758,94.702,39.20400602]
[1645183910275,31.1432831,94.757,94.702,39.20400602]
[1645183910472,37.1380229,94.757,94.702,39.20400602]
[1645183910674,8.6241229,94.756,94.702,39.20400602]
[1645183910875,5.277,94.755,94.702,39.20400602]
[1645183911074,5.9947398,94.754,94.667,24.8314]
[1645183911273,5.9947398,94.754,94.657,15.8296]
[1645183911274,15.8445,94.75,94.66,15.8466]
[1645183911473,31.0745,94.75,94.657,15.8296]
[1645183911674,11.2737398,94.749,94.657,15.8296]
[1645183911974,111.4947398,94.748,94.657,15.8296]
[1645183912176,55.22748932,94.747,94.658,51.62324413]
[1645183912475,5.9947398,94.746,94.658,51.62324413]
[1645183912674,29.4892,94.745,94.658,51.62324413]
[1645183912877,5.9947398,94.744,94.658,51.62324413]
[1645183913076,2.95455449,94.742,94.658,51.62324413]
[1645183913273,5.279,94.741,94.658,51.62324413]
[1645183913476,15.8485,94.73,94.658,51.62324413]
[1645183913675,23.5018,94.729,94.658,51.62324413]
[1645183913877,5.28,94.728,94.658,51.62324413]
[1645183915276,23.5018,94.729,94.658,51.62324413]
[1645183915481,15.8494,94.72,94.658,51.62324413]
[1645183916578,23.5018,94.729,94.658,51.62324413]
[1645183916778,23.5018,94.729,94.659,23.0593]
[1645183918981,23.5018,94.729,94.66,15.8468]
[1645183919183,23.5018,94.729,94.662,62.68]
[1645183919400,2.95455449,94.751,94.662,62.68]
[1645183919401,2.95455449,94.752,94.662,168.18]
[1645183919603,2.6293831,94.754,94.662,168.18]
[1645183920202,30.4574831,94.764,94.662,105.5]
[1645183920400,15.8442,94.75,94.67,15.8453]
[1645183920801,23.8416,94.749,94.671,23.3239]
[1645183922305,23.8416,94.749,94.68,15.8433]
[1645183922507,23.8416,94.749,94.681,46.15597683]
[1645183922705,23.8416,94.749,94.682,22.9735]
[1645183925207,2.6293831,94.748,94.682,22.9735]
[1645183925407,5.277,94.747,94.682,22.9735]
[1645183926208,5.279,94.748,94.682,22.9735]
[1645183926911,2.6293831,94.747,94.682,22.9735]
[1645183927110,49.61516793,94.745,94.682,22.9735]
[1645183927414,5.279,94.744,94.682,22.9735]
[1645183927809,2.6293831,94.743,94.682,22.9735]
[1645183928810,5.279,94.744,94.682,22.9735]
[1645183929009,5.279,94.748,94.682,22.9735]
[1645183929209,23.8416,94.749,94.682,22.9735]
[1645183931811,29.1186,94.749,94.682,22.9735]
[1645183932113,5.99670296,94.748,94.682,22.9735]
[1645183932311,5.277,94.747,94.682,22.9735]
[1645183932513,5.277,94.748,94.682,22.9735]
[1645183932712,31.7479831,94.749,94.682,22.9735]
[1645183933717,5.99649558,94.748,94.682,22.9735]
[1645183934618,51.11134169,94.748,94.682,22.9735]
[1645183935018,11.27349558,94.747,94.682,22.9735]
[1645183935220,5.99649558,94.746,94.682,22.9735]
[1645183935426,5.279,94.745,94.682,22.9735]
[1645183935618,5.99649558,94.744,94.682,22.9735]
[1645183935819,45.11484611,94.748,94.682,22.9735]
[1645183936220,26.4709831,94.749,94.682,22.9735]
[1645183936420,5.99626882,94.748,94.682,22.9735]
[1645183937023,26.4709831,94.749,94.682,22.9735]
[1645183937221,5.277,94.748,94.682,22.9735]
[1645183937622,5.99635273,94.747,94.682,22.9735]
[1645183937822,5.279,94.746,94.682,22.9735]
[1645183938051,5.99635273,94.745,94.682,22.9735]
[1645183938421,5.99635273,94.747,94.682,22.9735]
[1645183938625,5.279,94.746,94.682,22.9735]
[1645183939122,5.99635273,94.745,94.682,22.9735]
[1645183939538,5.99635273,94.747,94.682,22.9735]
[1645183939723,5.279,94.746,94.682,22.9735]
[1645183939925,5.99635273,94.745,94.682,22.9735]
[1645183940326,5.99635273,94.747,94.682,22.9735]
[1645183940525,5.279,94.746,94.682,22.9735]
[1645183940926,5.99635273,94.745,94.682,22.9735]
[1645183941230,5.279,94.748,94.682,22.9735]
[1645183941431,5.99611715,94.747,94.682,22.9735]
[1645183941627,5.99611715,94.748,94.682,22.9735]
[1645183943032,26.4709831,94.749,94.682,135.5735]
[1645183943231,23.8416,94.749,94.69,15.8414]
[1645183943429,2.6293831,94.76,94.683,62.68]
[1645183943633,23.6552,94.759,94.683,62.68]
[1645183943832,23.6552,94.759,94.686,105.5]
[1645183944031,2.95455449,94.774,94.686,105.5]
[1645183944236,2.95455449,94.775,94.686,110.06]
[1645183944532,2.95455449,94.778,94.686,110.06]
[1645183944931,2.95455449,94.778,94.69,105.5]
[1645183945131,5.99490784,94.788,94.682,38.7935]
[1645183945132,46.07333966,94.777,94.693,62.68]
[1645183945334,30.17770784,94.776,94.7,15.8402]
[1645183945561,11.27190784,94.775,94.694,23.6696]
[1645183945733,2.95455449,94.77,94.694,23.6696]
[1645183945932,11.27190784,94.769,94.694,23.6696]
[1645183946132,5.99490784,94.769,94.694,23.6696]
[1645183946335,5.99490784,94.768,94.694,23.6696]
[1645183946532,16.85584543,94.768,94.694,23.6696]
[1645183946733,15.8426,94.76,94.694,23.6696]
[1645183946953,50.38595274,94.758,94.694,23.6696]
[1645183947235,34.87430784,94.757,94.694,23.6696]
[1645183947435,5.99490784,94.756,94.694,23.6696]
[1645183947634,5.277,94.755,94.694,23.6696]
[1645183947838,5.99490784,94.754,94.694,23.6696]
[1645183948235,2.6293831,94.755,94.694,23.6696]
[1645183948439,23.6024,94.757,94.694,23.6696]
[1645183951441,23.6024,94.757,94.69,15.8419]
[1645183951639,40.84410073,94.742,94.681,46.15597683]
[1645183951840,15.23,94.73,94.681,46.15597683]
[1645183952041,5.99723782,94.729,94.681,46.15597683]
[1645183952237,46.01778741,94.727,94.681,46.15597683]
[1645183952438,2.95455449,94.725,94.681,46.15597683]
[1645183952638,1.46455608,94.698,94.681,46.15597683]
[1645183953337,17.31795608,94.7,94.681,46.15597683]
[1645183953538,15.8534,94.7,94.681,46.15597683]
[1645183953738,18.4827831,94.7,94.681,46.15597683]
[1645183954140,15.8534,94.7,94.681,46.15597683]
[1645183954541,1.46455608,94.706,94.681,46.15597683]
[1645183954741,1.46455608,94.707,94.681,46.15597683]
[1645183955040,1.46455608,94.704,94.681,46.15597683]
[1645183955241,4.09393918,94.705,94.681,46.15597683]
[1645183955642,1.46455608,94.704,94.681,46.15597683]
[1645183955843,4.09393918,94.705,94.681,46.15597683]
[1645183956341,1.46455608,94.706,94.681,46.15597683]
[1645183956545,1.46455608,94.708,94.681,46.15597683]
[1645183956942,15.8527,94.7,94.621,23.3198]
[1645183957346,7.9103831,94.699,94.621,23.3198]
[1645183957543,24.8621,94.698,94.621,23.3198]
[1645183957743,27.4914831,94.698,94.621,23.3198]
[1645183957943,27.4914831,94.698,94.65,51.35276135]
[1645183958147,24.8621,94.698,94.65,51.35276135]
[1645183961475,7.9103831,94.697,94.65,51.35276135]
[1645183961678,15.8542,94.69,94.65,51.35276135]
[1645183962678,7.9103831,94.697,94.65,51.35276135]
[1645183964283,15.8544,94.69,94.65,51.35276135]
[1645183964480,5.281,94.689,94.65,51.35276135]
[1645183964683,7.9103831,94.689,94.65,51.35276135]
[1645183965079,2.6293831,94.688,94.65,51.35276135]
[1645183967582,2.6293831,94.688,94.621,23.3198]
[1645183967784,5.281,94.687,94.621,23.3198]
[1645183968188,7.9103831,94.687,94.621,23.3198]
[1645183968392,24.4242,94.686,94.621,23.3198]
[1645183968586,5.281,94.685,94.648,49.61273117]
[1645183969489,15.8559,94.68,94.648,49.61273117]
[1645183972289,5.281,94.685,94.648,49.61273117]
[1645183972489,24.4242,94.686,94.648,49.61273117]
[1645183974188,64.69079019,94.686,94.648,49.61273117]
[1645183974594,64.69079019,94.686,94.621,23.3198]
[1645183974801,15.856,94.68,94.605,24.6974]
[1645183974993,20.226,94.68,94.606,23.3216]
[1645183975190,5.281,94.679,94.606,23.3216]
[1645183975394,7.9103831,94.679,94.606,23.3216]
[1645183975590,2.6293831,94.678,94.634,42.28816622]
[1645183975991,5.281,94.677,94.634,42.28816622]
[1645183976395,15.8592,94.67,94.634,42.28816622]
[1645183977293,15.8592,94.67,94.649,39.93211721]
[1645183977491,28.1006,94.669,94.649,39.93211721]
[1645183977694,5.282,94.669,94.649,39.93211721]
[1645183978491,5.282,94.669,94.649,0.99971]
[1645183978692,22.8525,94.668,94.649,0.99971]
[1645183978893,5.282,94.667,94.649,0.99971]
[1645183979813,5.282,94.669,94.649,0.99971]
[1645183980214,15.8592,94.66,94.649,0.99971]
[1645183980513,0.05109693,94.659,94.649,0.99971]
[1645183980714,70.0,94.658,94.521,9.67579611]
[1645183980915,70.0,94.658,94.573,23.8179]
[1645183981536,23.5973,94.657,94.573,23.8179]
[1645183981814,49.43268989,94.649,94.574,47.70233441]
[1645183982714,15.861,94.65,94.574,47.70233441]
[1645183987724,31.8991,94.65,94.574,47.70233441]
[1645183994838,47.1291,94.65,94.574,47.70233441]
[1645183995438,5.284,94.651,94.58,15.86]
[1645183995637,15.23,94.67,94.582,62.68]
[1645183995841,15.23,94.67,94.585,105.5]
[1645183996037,1.46455608,94.678,94.586,62.68]
[1645183996239,5.283,94.68,94.599,105.5]
[1645183996437,1.46455608,94.687,94.605,105.5]
[1645183996639,1.46455608,94.694,94.611,105.5]
[1645183996838,1.46455608,94.696,94.611,105.5]
[1645183997037,1.46455608,94.696,94.613,47.41256956]
[1645183997239,15.8529,94.7,94.613,47.41256956]
[1645183997240,1.46455608,94.695,94.613,47.41256956]
[1645183997740,1.46455608,94.696,94.613,47.41256956]
[1645183997939,1.46455608,94.697,94.62,15.8534]
[1645183998139,24.71625608,94.696,94.62,15.8534]
[1645183998340,23.2517,94.696,94.62,15.8534]
[1645183998543,15.8543,94.69,94.62,15.8534]
[1645184003548,15.8543,94.69,94.622,0.04259679]
[1645184004749,5.282,94.695,94.622,0.04259679]
[1645184004949,23.2517,94.696,94.622,0.04259679]
[1645184005848,5.282,94.695,94.622,0.04259679]
[1645184006049,15.8544,94.69,94.622,0.04259679]
[1645184006651,18.4837831,94.69,94.622,0.04259679]
[1645184008551,18.4837831,94.69,94.613,47.45512588]
[1645184009153,15.8544,94.69,94.613,47.45512588]
[1645184009752,15.8544,94.69,94.613,50.08450898]
[1645184010358,15.8544,94.69,94.613,47.45512588]
[1645184013255,5.282,94.689,94.613,47.45512588]
[1645184013455,5.282,94.689,94.615,0.04273848]
[1645184015960,15.8544,94.69,94.615,0.04273848]
[1645184017367,5.282,94.689,94.615,0.04273848]
[1645184018465,5.282,94.689,94.613,47.45526756]
[1645184018666,15.8544,94.69,94.613,47.45526756]
[1645184021992,17.31895608,94.69,94.613,47.45526756]
[1645184022390,17.31895608,94.69,94.62,15.8532]
[1645184022791,1.46455608,94.689,94.613,47.45526756]
[1645184022992,1.46455608,94.688,94.613,47.45526756]
[1645184023596,1.46455608,94.686,94.615,0.04273848]
[1645184024794,15.8544,94.69,94.615,0.04273848]
[1645184024795,1.46455608,94.682,94.615,0.04273848]
[1645184025699,23.0096,94.681,94.615,0.04273848]
[1645184025897,1.46455608,94.679,94.615,0.04273848]
[1645184027599,1.46455608,94.679,94.616,2.6293831]
[1645184027797,1.46455608,94.679,94.615,0.04273848]
[1645184028199,1.46455608,94.67,94.615,0.04273848]
[1645184028398,1.46455608,94.663,94.615,0.04273848]
[1645184028600,1.46455608,94.658,94.613,47.45526756]
[1645184028800,1.46455608,94.66,94.613,47.45526756]
[1645184029001,1.46455608,94.661,94.613,47.45526756]
[1645184029601,1.46455608,94.662,94.613,47.45526756]
[1645184029803,1.46455608,94.664,94.613,47.45526756]
[1645184030601,1.46455608,94.668,94.613,47.45526756]
[1645184030806,24.27555608,94.669,94.613,47.45526756]
[1645184031102,1.46455608,94.664,94.613,47.45526756]
[1645184032002,1.46455608,94.667,94.613,47.45526756]
[1645184032207,22.811,94.669,94.613,47.45526756]
[1645184033604,1.46455608,94.668,94.615,0.04273848]
[1645184033802,1.46455608,94.667,94.615,0.04273848]
[1645184034202,24.27555608,94.669,94.615,0.04273848]
[1645184034403,22.811,94.669,94.615,0.04273848]
[1645184037208,17.32235608,94.67,94.615,0.04273848]
[1645184037406,2.95455449,94.696,94.615,0.04273848]
[1645184037407,1.46455608,94.675,94.615,0.04273848]
[1645184037608,1.46455608,94.679,94.615,0.04273848]
[1645184038208,1.46455608,94.678,94.615,0.04273848]
[1645184038412,40.06087217,94.677,94.615,0.04273848]
[1645184038711,1.46455608,94.675,94.614,24.737998]
[1645184038910,1.46455608,94.674,94.614,24.737998]
[1645184039109,5.282,94.673,94.614,24.737998]
[1645184039310,6.74655608,94.673,94.614,0.042698]
[1645184039511,1.46455608,94.673,94.614,0.042698]
[1645184039708,1.46455608,94.671,94.614,0.042698]
[1645184040811,1.46455608,94.672,94.614,0.042698]
[1645184041209,15.8577,94.67,94.614,0.042698]
[1645184041509,1.46455608,94.668,94.614,0.042698]
[1645184042313,17.32225608,94.67,94.614,0.042698]
[1645184043111,1.46455608,94.67,94.614,0.042698]
[1645184043312,1.46455608,94.67,94.614,2.6720811]
[1645184043514,26.15735608,94.676,94.614,26.3818831]
[1645184043711,26.15735608,94.676,94.614,23.7525]
[1645184044514,24.6928,94.676,94.614,23.7525]
[1645184044815,1.46455608,94.675,94.614,23.7525]
[1645184047321,1.46455608,94.674,94.614,23.7525]
[1645184048515,1.46455608,94.674,94.616,0.04271824]
[1645184049115,1.46455608,94.671,94.616,0.04271824]
[1645184049416,1.46455608,94.672,94.616,0.04271824]
[1645184049618,1.46455608,94.673,94.616,0.04271824]
[1645184049817,1.46455608,94.671,94.616,0.04271824]
[1645184050820,1.46455608,94.67,94.616,0.04271824]
[1645184052521,17.32245608,94.67,94.616,0.04271824]
[1645184053022,1.46455608,94.669,94.616,0.04271824]
[1645184053224,15.8579,94.67,94.616,0.04271824]
[1645184053423,15.8579,94.67,94.614,23.79517776]
[1645184053826,1.46455608,94.669,94.614,23.79517776]
[1645184054352,17.32245608,94.67,94.614,23.79517776]
[1645184054652,15.8593,94.66,94.614,23.79517776]
[1645184054852,24.2468,94.659,94.614,23.79517776]
[1645184055754,24.2468,94.659,94.614,0.04267776]
[1645184055955,17.32565608,94.65,94.614,0.04267776]
[1645184056152,1.46455608,94.646,94.614,0.04267776]
[1645184056357,5.283,94.645,94.614,0.04267776]
[1645184056555,1.46455608,94.641,94.614,0.04267776]
[1645184056750,51.58580246,94.641,94.614,0.04267776]
[1645184056953,15.8634,94.64,94.614,0.04267776]
[1645184057155,5.283,94.639,94.614,0.04267776]
[1645184057352,7.9123831,94.639,94.614,0.04267776]
[1645184057753,1.46455608,94.637,94.614,0.04267776]
[1645184057953,6.74755608,94.636,94.614,0.04267776]
[1645184058153,4.09393918,94.636,94.614,0.04267776]
[1645184058353,5.284,94.635,94.614,0.04267776]
[1645184058553,49.96688752,94.635,94.593,0.31581824]
[1645184058754,2.6293831,94.634,94.593,0.31581824]
[1645184058957,15.8643,94.63,94.593,0.31581824]
[1645184059154,5.284,94.629,94.593,0.31581824]
[1645184061560,15.8662,94.62,94.593,0.31581824]
[1645184061958,23.0182,94.619,94.593,0.31581824]
[1645184062860,15.8682,94.61,94.593,0.31581824]
[1645184063459,15.8682,94.61,94.593,0.2731]
[1645184064261,23.0182,94.619,94.593,0.2731]
[1645184068263,5.285,94.634,94.593,0.2731]
[1645184068462,1.46455608,94.655,94.593,0.2731]
[1645184068663,5.284,94.662,94.593,0.2731]
[1645184068864,5.284,94.665,94.593,0.2731]
[1645184069267,50.75927898,94.646,94.593,0.2731]
[1645184070264,15.8626,94.64,94.593,0.2731]
[1645184070663,5.284,94.639,94.593,0.2731]
[1645184071865,15.8626,94.64,94.593,0.2731]
[1645184074571,15.8661,94.63,94.593,0.2731]
[1645184074768,5.284,94.629,94.593,0.2731]
[1645184075167,5.284,94.639,94.593,0.2731]
[1645184075569,15.8666,94.62,94.593,0.2731]
[1645184075768,48.28871863,94.619,94.593,0.2731]
[1645184076571,5.285,94.619,94.593,0.2731]
[1645184076772,15.8682,94.61,94.593,0.2731]
[1645184077374,5.285,94.609,94.593,0.2731]
[1645184077573,15.8682,94.61,94.593,0.2731]
[1645184078370,5.285,94.609,94.593,0.2731]
[1645184082206,2.6293831,94.608,94.593,0.2731]
[1645184082406,5.285,94.607,94.593,0.2731]
[1645184082605,15.23,94.6,94.593,0.2731]
[1645184082807,5.33609693,94.599,94.593,0.0031]
[1645184083000,15.8745,94.59,94.568,0.0001]
[1645184083201,29.4815,94.589,94.568,0.0001]
[1645184083600,32.1108831,94.589,94.568,0.0001]
[1645184083801,2.6293831,94.588,94.568,0.0001]
[1645184084001,105.5,94.586,94.568,0.0001]
[1645184084209,15.8748,94.58,94.568,0.0001]
[1645184084405,5.285,94.579,94.568,0.0001]
[1645184084704,105.55109693,94.578,94.568,0.0001]
[1645184084902,105.5,94.576,94.568,0.0001]
[1645184085104,5.285,94.575,94.568,0.0001]
[1645184085302,22.884,94.574,94.568,0.0001]
[1645184085702,5.287,94.573,94.568,0.0001]
[1645184086302,22.884,94.574,94.568,0.0001]
[1645184094322,108.1293831,94.573,94.568,0.0001]
[1645184094523,0.02,94.564,94.496,38.78713635]
[1645184094722,31.1115,94.55,94.496,38.78713635]
[1645184095125,5.289,94.549,94.496,38.78713635]
[1645184095525,53.67021456,94.548,94.496,38.78713635]
[1645184095722,5.289,94.547,94.496,38.78713635]
[1645184095923,15.8799,94.54,94.487,0.43056888]
[1645184096131,5.29,94.539,94.487,0.43056888]
[1645184096325,15.23,94.54,94.487,0.43056888]
[1645184096522,5.29,94.539,94.487,0.43056888]
[1645184097123,15.8815,94.53,94.487,0.43056888]
[1645184098526,15.8815,94.53,94.489,0.11828239]
[1645184098725,7.9193831,94.529,94.489,0.11828239]
[1645184098927,15.8815,94.53,94.489,0.11828239]
[1645184101252,31.1115,94.53,94.489,0.11828239]
[1645184103555,31.1115,94.53,94.487,0.54872949]
[1645184105956,15.8815,94.53,94.487,0.54872949]
[1645184108460,15.8815,94.53,94.489,0.11828239]
[1645184109060,18.5108831,94.53,94.489,0.11828239]
[1645184109460,15.8815,94.53,94.489,0.11828239]
[1645184110666,22.9958,94.529,94.489,0.11828239]
[1645184111072,2.6293831,94.547,94.489,0.11828239]
[1645184111073,2.6293831,94.559,94.489,0.11828239]
[1645184111465,5.289,94.558,94.489,0.11828239]
[1645184111764,106.96455608,94.557,94.489,0.11828239]
[1645184112064,105.5,94.555,94.489,0.11828239]
[1645184112264,105.5,94.549,94.489,0.11828239]
[1645184112463,105.5,94.539,94.489,0.11828239]
[1645184112663,15.23,94.54,94.489,0.11828239]
[1645184112863,5.29,94.539,94.489,0.11828239]
[1645184113264,7.9193831,94.539,94.489,0.11828239]
[1645184113465,7.9193831,94.539,94.487,0.54872949]
[1645184113668,105.5,94.529,94.487,0.54872949]
[1645184113864,156.50136324,94.526,94.487,0.54872949]
[1645184114465,53.63074634,94.526,94.487,0.54872949]